fUST/lending_fUST_20250930
["ID","MTS","AMOUNT","RATE_DAILY","PERIOD"]
[388495677,1759216315725,-500.0,0.00019613,2]
[388495678,1759216315757,-247.83840178,0.00019613,2]
[388495679,1759216315953,-260.3859169,0.00019613,2]
[388495680,1759216323268,-300.0,0.00019612,2]
[388495681,1759216323302,-500.0,0.00019613,2]
[388495682,1759216323338,-500.0,0.00019613,2]
[388495683,1759216323372,-500.0,0.00019613,2]
[388495684,1759216323409,-500.0,0.00019613,2]
[388495685,1759216323445,-500.0,0.00019613,2]
[388495686,1759216323480,-500.0,0.00019613,2]
[388495687,1759216323513,-500.0,0.00019613,2]
[388495688,1759216323550,-500.0,0.00019613,2]
[388495689,1759216323585,-300.0,0.00019613,2]
[388495690,1759216323620,-300.01,0.00019613,2]
[388495691,1759216323825,-199.99,0.00019613,2]
[388495692,1759216343288,-840.7868035,0.00019514,2]
[388495693,1759216343322,-1200.0,0.00019612,2]
[388495694,1759216343357,-444.72912465,0.00019613,2]
[388495695,1759216343395,-500.0,0.00019613,2]
[388495696,1759216343431,-500.0,0.00019613,2]
[388495697,1759216343468,-300.0,0.00019613,2]
[388495698,1759216343501,-500.0,0.00019613,2]
[388495699,1759216343539,-500.0,0.00019613,2]
[388495700,1759216343717,-428.9781437,0.00019613,2]
[388495701,1759216346104,165.2508497,0.00018714,2]
[388495702,1759216353444,-10000.01,0.00019613,2]
[388495703,1759216353674,-10000.01,0.00019613,2]
[388495704,1759216353822,-10000.01,0.00019613,2]
[388495705,1759216353999,-10000.01,0.00019613,2]
[388495706,1759216354149,-0.05,0.00019613,2]
[388495707,1759216354180,-9999.91,0.00019613,2]
[388495708,1759216354307,-71.0218563,0.00019613,2]
[388495709,1759216354344,-500.0,0.00019613,2]
[388495710,1759216354380,-500.0,0.00019613,2]
[388495711,1759216354433,-500.0,0.00019613,2]
[388495712,1759216354467,-500.0,0.00019613,2]
[388495713,1759216354505,-500.0,0.00019613,2]
[388495714,1759216354537,-500.0,0.00019613,2]
[388495715,1759216354571,-500.0,0.00019613,2]
[388495716,1759216354604,-500.0,0.00019613,2]
[388495717,1759216354639,-500.0,0.00019613,2]
[388495718,1759216354670,-357.9662874,0.00019613,2]
[388495719,1759216354803,-142.0337126,0.00019613,2]
[388495720,1759216354836,-500.0,0.00019613,2]
[388495721,1759216354869,-605.85634758,0.00019613,2]
[388495722,1759216354907,-500.0,0.00019613,2]
[388495723,1759216354944,-248.08201565,0.00019613,2]
[388495724,1759216354977,-500.0,0.00019613,2]
[388495725,1759216355013,-500.0,0.00019613,2]
[388495726,1759216355047,-392.42990948,0.00019613,2]
[388495727,1759216355234,-400.0,0.00019613,2]
[388495728,1759216355268,-500.0,0.00019613,2]
[388495729,1759216355303,-500.0,0.00019613,2]
[388495730,1759216355464,-500.0,0.00019613,2]
[388495731,1759216355500,-500.0,0.00019613,2]
[388495732,1759216355537,-500.0,0.00019613,2]
[388495733,1759216355570,-500.0,0.00019613,2]
[388495734,1759216355602,-500.0,0.00019613,2]
[388495735,1759216355638,-500.0,0.00019613,2]
[388495736,1759216355676,-500.0,0.00019613,2]
[388495737,1759216355711,-500.0,0.00019613,2]
[388495738,1759216355745,-500.0,0.00019613,2]
[388495739,1759216355779,-500.0,0.00019613,2]
[388495740,1759216355875,-500.0,0.00019613,2]
[388495741,1759216355911,-500.0,0.00019613,2]
[388495742,1759216355951,-500.0,0.00019613,2]
[388495743,1759216355990,-500.0,0.00019613,2]
[388495744,1759216356030,-500.0,0.00019613,2]
[388495745,1759216356066,-500.0,0.00019613,2]
[388495746,1759216356103,-500.0,0.00019613,2]
[388495747,1759216356141,-500.0,0.00019613,2]
[388495748,1759216356176,-503.39351512,0.00019613,2]
[388495749,1759216356207,-480.0,0.00019613,2]
[388495750,1759216356358,-480.0,0.00019613,2]
[388495751,1759216356395,-480.0,0.00019613,2]
[388495752,1759216356431,-480.0,0.00019613,2]
[388495753,1759216356464,-3331.96,0.00019613,2]
[388495754,1759216357604,-480.0,0.00019613,2]
[388495755,1759216357613,-121.86622686,0.00019613,2]
[388495756,1759216357634,-358.13377314,0.00019613,2]
[388495757,1759216357643,-97.95622686,0.00019613,2]
[388495758,1759216363347,-249.36515014,0.00019613,2]
[388495759,1759216363383,-420.77,0.00019613,2]
[388495760,1759216363429,-480.0,0.00019613,2]
[388495761,1759216363464,-480.0,0.00019613,2]
[388495762,1759216363696,-975.2,0.00019613,2]
[388495763,1759216363734,-1880.27969972,0.00019613,2]
[388495764,1759216363844,-1028.78030028,0.00019613,2]
[388495765,1759216363878,-480.0,0.00019613,2]
[388495766,1759216363912,-480.0,0.00019613,2]
[388495767,1759216363947,-628.32,0.00019613,2]
[388495768,1759216365497,480.0,0.00019613,2]
[388495769,1759216366007,480.0,0.00019613,2]
[388495771,1759216369233,480.0,0.00019613,2]
[388495772,1759216371192,480.0,0.00019613,2]
[388495773,1759216372451,480.0,0.00019613,2]
[388495774,1759216373981,480.0,0.00019613,2]
[388495775,1759216374710,480.0,0.00019613,2]
[388495776,1759216377823,480.0,0.00019613,2]
[388495777,1759216377996,480.0,0.00019613,2]
[388495778,1759216378133,445.80939944,0.00019613,2]
[388495779,1759216378161,34.19060056,0.00019613,2]
[388495780,1759216381404,480.0,0.00019613,2]
[388495781,1759216382100,480.0,0.00019613,2]
[388495782,1759216383648,300.0,0.00019613,2]
[388495783,1759216384162,238.30428708,0.00019613,2]
[388495784,1759216384431,500.0,0.00019612,2]
[388495785,1759216384571,500.0,0.00019612,2]
[388495786,1759216384678,533.90256838,0.00019612,2]
[388495787,1759216385958,448.06972935,0.00019612,2]
[388495788,1759216385993,500.0,0.00019612,2]
[388495789,1759216386033,598.30092116,0.00019612,2]
[388495790,1759216386069,500.0,0.00019612,2]
[388495791,1759216386112,500.0,0.00019612,2]
[388495792,1759216386144,474.59688369,0.00019612,2]
[388495793,1759216386192,500.0,0.00019612,2]
[388495794,1759216386228,496.04810814,0.00019612,2]
[388495795,1759216388271,480.0,0.00019613,2]
[388495796,1759216393302,480.0,0.00019613,2]
[388495797,1759216395636,480.0,0.00019613,2]
[388495798,1759216399404,480.0,0.00019613,2]
[388495799,1759216403631,480.0,0.00019613,2]
[388495800,1759216405590,268.21296073,0.00019613,2]
[388495801,1759216407612,248.38394091,0.00019613,2]
[388495802,1759216407638,64.63942619,0.00019613,2]
[388495803,1759216407845,480.0,0.00019613,2]
[388495804,1759216410090,157.26,0.00019613,2]
[388495805,1759216410888,480.0,0.00019613,2]
[388495807,1759216413494,480.0,0.00019613,2]
[388495808,1759216413774,487.17628758,0.00019613,2]
[388495810,1759216414790,480.0,0.00019613,2]
[388495811,1759216415565,480.0,0.00019613,2]
[388495812,1759216418725,480.0,0.00019613,2]
[388495813,1759216420167,480.0,0.00019613,2]
[388495814,1759216420876,588.2,0.00019613,2]
[388495815,1759216424380,-576.92488679,0.00019614,2]
[388495816,1759216424399,-10000.01,0.00019614,2]
[388495817,1759216424424,-10000.01,0.00019614,2]
[388495818,1759216424520,-10000.01,0.00019614,2]
[388495819,1759216424550,-10000.01,0.00019614,2]
[388495820,1759216424617,-10000.01,0.00019614,2]
[388495821,1759216424742,-10000.01,0.00019614,2]
[388495822,1759216424883,-10000.01,0.00019614,2]
[388495823,1759216425020,-10000.01,0.00019614,2]
[388495824,1759216425188,493.45,0.00019613,2]
[388495825,1759216425905,480.0,0.00019612,2]
[388495826,1759216433444,-480.0,0.00019612,2]
[388495827,1759216433480,-480.0,0.00019613,2]
[388495828,1759216433561,-7106.56,0.00019614,2]
[388495829,1759216433590,-10000.01,0.00019614,2]
[388495830,1759216441184,-481.80174541,0.00019613,2]
[388495831,1759216441221,-480.0,0.00019613,2]
[388495832,1759216441257,-2224.54629517,0.00019614,2]
[388495833,1759216441291,-247.56,0.00019614,2]
[388495834,1759216441322,-480.0,0.00019614,2]
[388495835,1759216441355,-200.0,0.00019614,10]
[388495836,1759216441387,-200.0,0.00019614,10]
[388495837,1759216441417,-200.0,0.00019614,10]
[388495838,1759216441453,-200.0,0.00019614,10]
[388495839,1759216441483,-200.0,0.00019614,10]
[388495840,1759216441597,-200.0,0.00019614,10]
[388495841,1759216441629,-200.0,0.00019614,10]
[388495842,1759216441662,-200.0,0.00019614,10]
[388495843,1759216441695,-200.0,0.00019614,10]
[388495844,1759216441729,-200.0,0.00019614,10]
[388495845,1759216441765,-200.0,0.00019614,10]
[388495846,1759216441797,-200.0,0.00019614,10]
[388495847,1759216441828,-200.0,0.00019614,10]
[388495848,1759216441859,-200.0,0.00019614,10]
[388495849,1759216441890,-200.0,0.00019614,10]
[388495850,1759216441920,-200.0,0.00019614,10]
[388495851,1759216441953,-200.0,0.00019614,10]
[388495852,1759216441987,-200.0,0.00019614,10]
[388495853,1759216442022,-200.0,0.00019614,10]
[388495854,1759216442057,-181.593367,0.00019614,10]
[388495855,1759216443869,480.0,0.00019613,2]
[388495856,1759216446059,480.0,0.00019613,2]
[388495857,1759216446413,483.66182401,0.00019613,2]
[388495858,1759216449919,480.0,0.00019613,2]
[388495859,1759216450824,-181.9557539,0.00019669,2]
[388495860,1759216451377,489.14,0.00019613,2]
[388495861,1759216451763,480.0,0.00019613,2]
[388495862,1759216453116,-197.23192433,0.00019669,2]
[388495863,1759216454768,-190.49204894,0.00019669,2]
[388495864,1759216455909,480.0,0.00019613,2]
[388495865,1759216456561,480.0,0.00019612,2]
[388495866,1759216456921,480.0,0.00019612,2]
[388495867,1759216458046,480.0,0.00019613,2]
[388495868,1759216458271,480.0,0.00019613,2]
[388495869,1759216458814,-230.32027283,0.00019669,2]
[388495870,1759216458842,-106.85984988,0.00019689,2]
[388495871,1759216459986,606.86,0.00019613,2]
[388495872,1759216463589,490.53730945,0.00019613,2]
[388495873,1759216463635,480.0,0.00019613,2]
[388495874,1759216480915,-160.0,0.00019613,2]
[388495875,1759216483605,-320.0,0.00019613,2]
[388495876,1759216483632,-480.0,0.00019613,2]
[388495877,1759216483657,-480.0,0.00019613,2]
[388495878,1759216483688,-693.14015012,0.00019689,2]
[388495879,1759216484742,36.69440122,0.00019613,2]
[388495880,1759216488506,-151.0,0.00019613,2]
[388495881,1759216490238,-155.7978272,0.00019613,2]
[388495882,1759216492925,-136.50777158,0.00019613,2]
[388495883,1759216492954,-174.00805353,0.00019613,2]
[388495884,1759216496665,1000.0,0.0002,14]
[388495885,1759216497976,-170.67103699,0.00019613,2]
[388495886,1759216500082,-135.32090948,0.00019613,2]
[388495887,1759216500111,-164.67909052,0.00019613,2]
[388495888,1759216502267,-156.61580492,0.00019613,2]
[388495889,1759216504606,-221.27718648,0.00019613,2]
[388495890,1759216507759,-221.59791808,0.00019613,2]
[388495891,1759216507785,-29.41037844,0.00019613,2]
[388495892,1759216509914,-223.4315462,0.00019613,2]
[388495893,1759216512887,-227.15807536,0.00019613,2]
[388495894,1759216512915,-120.37844035,0.00019613,2]
[388495895,1759216514508,-289.50795106,0.00019613,2]
[388495896,1759216517508,-82.59360859,0.00019613,2]
[388495897,1759216517536,-75.01727835,0.00019613,2]
[388495898,1759216519283,-255.02057321,0.00019613,2]
[388495899,1759216521644,-149.96214844,0.00019613,2]
[388495900,1759216521674,-395.19436969,0.00019613,2]
[388495901,1759216532162,-85.97563031,0.00019613,2]
[388495902,1759216532189,-394.02436969,0.00019613,2]
[388495903,1759216536589,-85.97563031,0.00019613,2]
[388495904,1759216536616,-270.42572962,0.00019613,2]
[388495905,1759216544319,-209.57427038,0.00019613,2]
[388495906,1759216544349,-56.22572962,0.00019613,2]
[388495907,1759216547152,-423.77427038,0.00019613,2]
[388495908,1759216547181,-166.80572962,0.00019613,2]
[388495909,1759216551930,-286.9570534,0.00019613,2]
[388495910,1759216553597,-26.23721698,0.00019613,2]
[388495911,1759216553627,-437.32222049,0.00019613,2]
[388495912,1759216557619,-42.67777951,0.00019613,2]
[388495913,1759216557662,-217.52665639,0.00019613,2]
[388495914,1759216559870,-188.12291909,0.00019613,2]
[388495915,1759216562941,-74.35042452,0.00019613,2]
[388495916,1759216562992,-225.64957548,0.00019613,2]
[388495917,1759216565284,-153.2787178,0.00019613,2]
[388495918,1759216567011,-101.07170672,0.00019613,2]
[388495919,1759216567043,-114.60612634,0.00019613,2]
[388495920,1759216570571,-306.15742182,0.00019613,2]
[388495921,1759216572330,-59.23645184,0.00019613,2]
[388495922,1759216572361,-203.65425316,0.00019613,2]
[388495923,1759216575726,-276.34574684,0.00019613,2]
[388495924,1759216575757,-28.10390087,0.00019613,2]
[388495925,1759216577531,-320.31609913,0.00019613,2]
[388495926,1759216577559,-541.18,0.00019613,2]
[388495927,1759216577586,-276.23395756,0.00019613,2]
[388495928,1759216578171,10000.01,0.00019514,2]
[388495929,1759216578202,10000.01,0.00019514,2]
[388495930,1759216578234,10000.01,0.00019514,2]
[388495931,1759216578264,10000.01,0.00019514,2]
[388495932,1759216578297,10000.01,0.00019514,2]
[388495933,1759216578331,10000.01,0.00019514,2]
[388495934,1759216578364,10000.01,0.00019514,2]
[388495935,1759216578395,10000.01,0.00019514,2]
[388495936,1759216578426,10000.01,0.00019514,2]
[388495937,1759216578459,10000.01,0.00019514,2]
[388495938,1759216598683,-500.0,0.00019513,2]
[388495939,1759216598719,-573.73179787,0.00019513,2]
[388495940,1759216598754,-221.78312313,0.00019513,2]
[388495941,1759216608834,-538.78102454,0.00019514,2]
[388495942,1759216608866,-10000.01,0.00019514,2]
[388495943,1759216609188,-10000.01,0.00019514,2]
[388495944,1759216609220,-10000.01,0.00019514,2]
[388495945,1759216609351,-10000.01,0.00019514,2]
[388495946,1759216609482,-10000.01,0.00019514,2]
[388495947,1759216609631,-10000.01,0.00019514,2]
[388495948,1759216609779,-10000.01,0.00019514,2]
[388495949,1759216609951,-10000.01,0.00019514,2]
[388495950,1759216610071,-10000.01,0.00019514,2]
[388495951,1759216628722,-585.0,0.00019513,2]
[388495952,1759216628756,-266.04918776,0.00019513,2]
[388495953,1759216628790,-735.68845301,0.00019513,2]
[388495954,1759216628823,-300.0,0.00019513,2]
[388495955,1759216628995,-321.65931154,0.00019513,2]
[388495956,1759216629029,-346.04641236,0.00019513,2]
[388495957,1759216629080,-5558.82899456,0.00019514,2]
[388495958,1759216629197,-321.65931154,0.00019513,2]
[388495959,1759216629236,-178.34068846,0.00019513,2]
[388495960,1759216629277,-167.7057239,0.00019513,2]
[388495961,1759216629301,-332.2942761,0.00019513,2]
[388495962,1759216629310,-8332.3042761,0.00019514,2]
[388495963,1759216629642,-417.21321096,0.00019513,2]
[388495964,1759216629710,-9404.45610058,0.00019514,2]
[388495965,1759216629780,-417.21321096,0.00019514,2]
[388495966,1759216629815,-9165.58357808,0.00019514,2]
[388495967,1759216629902,-528.86465159,0.00019513,2]
[388495968,1759216629912,-9471.14534841,0.00019514,2]
[388495969,1759216629937,-10000.01,0.00019514,2]
[388495970,1759216629967,-10000.01,0.00019514,2]
[388495971,1759216630055,-10000.01,0.00019514,2]
[388495972,1759216630098,-10000.01,0.00019514,2]
[388495973,1759216630218,-10000.01,0.00019514,2]
[388495974,1759216631355,-267.75104591,0.00019514,2]
[388495975,1759216660389,-500.0,0.00019513,2]
[388495976,1759216660418,-29.93671371,0.00019513,2]
[388495977,1759216665842,-190.92257818,0.00019513,2]
[388495978,1759216668547,-279.14070811,0.00019513,2]
[388495979,1759216668577,-171.0080772,0.00019513,2]
[388495980,1759216670851,-328.9919228,0.00019513,2]
[388495981,1759216670881,-63.84675084,0.00019513,2]
[388495982,1759216675271,-300.0,0.00019513,2]
[388495983,1759216676853,-21.25888018,0.00019513,2]
[388495984,1759216676880,-325.16045664,0.00019513,2]
[388495985,1759216681081,-271.9183814,0.00019513,2]
[388495986,1759216682949,-253.58066318,0.00019513,2]
[388495987,1759216687375,-331.67309115,0.00019513,2]
[388495988,1759216689015,-17.66740763,0.00019513,2]
[388495989,1759216689056,-145.67128795,0.00019513,2]
[388495990,1759216692292,-154.32871205,0.00019513,2]
[388495991,1759216692320,-252.38256795,0.00019514,2]
[388495992,1759216694448,-284.76911512,0.00019514,2]
[388495993,1759216697785,-199.73350451,0.00019514,2]
[388495994,1759216699598,-300.0,0.00019514,2]
[388495995,1759216701356,-360.37186939,0.00019514,2]
[388495996,1759216704671,-290.33,0.00019514,2]
[388495997,1759216708016,-329.30661692,0.00019514,2]
[388495998,1759216711190,-643.88539819,0.00019514,2]
[388495999,1759216714924,-210.09829652,0.00019514,2]
[388496000,1759216716563,-252.39399934,0.00019514,2]
[388496001,1759216719386,-339.43481762,0.00019514,2]
[388496002,1759216723551,-249.23579346,0.00019514,2]
[388496003,1759216729129,-176.64060893,0.00019514,2]
[388496004,1759216731207,-443.48830037,0.00019514,2]
[388496005,1759216735645,-276.95595076,0.00019514,2]
[388496006,1759216737492,-206.28091996,0.00019514,2]
[388496007,1759216740328,-300.0,0.00019513,2]
[388496008,1759216747690,-233.85748973,0.00019513,2]
[388496009,1759216753571,-66.14251027,0.00019513,2]
[388496010,1759216753600,-249.23497946,0.00019514,2]
[388496011,1759216759003,-213.85764713,0.00019514,2]
[388496013,1759216762750,-482.51660922,0.00019513,2]
[388496014,1759216762780,-70.34104486,0.00019514,2]
[388496015,1759216764967,-199.3948353,0.00019513,2]
[388496016,1759216768983,-280.6051647,0.00019513,2]
[388496017,1759216769018,-3.44455463,0.00019514,2]
[388496020,1759216770987,-293.21788925,0.00019514,2]
[388496021,1759216772890,-177.3254538,0.00019514,2]
[388496023,1759216776487,-214.20649766,0.00019514,2]
[388496025,1759216778869,-232.61845327,0.00019514,2]
[388496026,1759216782067,-257.78614421,0.00019513,2]
[388496028,1759216786797,-223.98647244,0.00019513,2]
[388496029,1759216786821,-8.86606663,0.00019513,2]
[388496031,1759216789206,-188.0,0.00019513,2]
[388496034,1759216793388,-249.31459706,0.00019513,2]
[388496035,1759216796054,-168.0115732,0.00019513,2]
[388496036,1759216797801,-289.27485921,0.00019513,2]
[388496038,1759216800505,-1.36382407,0.00019513,2]
[388496039,1759216800532,-188.0,0.00019513,2]
[388496040,1759216800558,-27.07955843,0.00019513,2]
[388496041,1759216803342,-9.36951932,0.00019513,2]
[388496042,1759216803374,-300.0,0.00019513,2]
[388496043,1759216803406,-63.76477511,0.00019514,2]
[388496045,1759216808446,10000.01,0.00019513,2]
[388496046,1759216808475,10000.01,0.00019513,2]
[388496047,1759216808501,10000.01,0.00019513,2]
[388496048,1759216808528,10000.01,0.00019513,2]
[388496050,1759216808554,10000.01,0.00019513,2]
[388496051,1759216808580,10000.01,0.00019513,2]
[388496052,1759216808606,10000.01,0.00019513,2]
[388496053,1759216808632,10000.01,0.00019513,2]
[388496054,1759216808659,10000.01,0.00019513,2]
[388496055,1759216808685,10000.01,0.00019513,2]
[388496056,1759216810051,-177.569784,0.00019513,2]
[388496065,1759216825423,-22.430216,0.00019513,2]
[388496066,1759216825449,-205.47998789,0.00019513,2]
[388496068,1759216830338,-67.35148882,0.00019513,2]
[388496069,1759216830378,-159.81703447,0.00019513,2]
[388496070,1759216832724,-277.79248738,0.00019513,2]
[388496071,1759216834766,-62.39047815,0.00019513,2]
[388496072,1759216834795,-227.46344808,0.00019513,2]
[388496073,1759216836437,-21.85114898,0.00019513,2]
[388496074,1759216836464,-267.14746093,0.00019513,2]
[388496075,1759216836490,-227.16852329,0.00019513,2]
[388496076,1759216836516,-852.5428668,0.00019513,2]
[388496077,1759216838776,-500.0,0.00019513,2]
[388496078,1759216838806,-347.4571332,0.00019513,2]
[388496079,1759216838842,-131.80795957,0.00019514,2]
[388496080,1759216840295,-408.13593994,0.00019514,2]
[388496081,1759216842559,-840.21485054,0.00019514,2]
[388496083,1759216846750,-160.0,0.00019513,2]
[388496084,1759216855879,10000.01,0.00019513,2]
[388496085,1759216855907,7675.54706521,0.00019513,2]
[388496090,1759216922720,300.0,0.00019512,2]
[388496093,1759216941100,1200.0,0.00019512,2]
[388496094,1759216945198,217.89185822,0.00019414,2]
[388496096,1759216982374,300.0,0.00019512,2]
[388496097,1759216986594,306.57107657,0.00019513,2]
[388496098,1759216986622,10000.01,0.00019513,2]
[388496099,1759216986648,10000.01,0.00019513,2]
[388496100,1759216986675,10000.01,0.00019513,2]
[388496101,1759216986700,10000.01,0.00019513,2]
[388496102,1759216986725,3787.83643452,0.00019513,2]
[388496104,1759217053198,500.0,0.00019513,2]
[388496106,1759217073686,321.91315088,0.00019512,2]
[388496107,1759217073726,500.0,0.00019512,2]
[388496108,1759217073803,500.0,0.00019512,2]
[388496109,1759217074078,500.0,0.00019512,2]
[388496110,1759217074131,500.0,0.00019512,2]
[388496111,1759217074173,500.0,0.00019512,2]
[388496112,1759217074430,321.51639808,0.00019512,2]
[388496113,1759217078746,577.64275525,0.00019512,2]
[388496114,1759217078781,500.0,0.00019512,2]
[388496115,1759217078813,500.0,0.00019512,2]
[388496116,1759217078851,500.0,0.00019512,2]
[388496117,1759217078886,491.10126127,0.00019512,2]
[388496118,1759217078915,8.89873873,0.00019512,2]
[388496119,1759217078949,500.0,0.00019512,2]
[388496120,1759217078985,500.0,0.00019512,2]
[388496121,1759217079017,500.0,0.00019512,2]
[388496122,1759217079051,500.0,0.00019512,2]
[388496123,1759217079086,500.0,0.00019512,2]
[388496124,1759217079120,500.0,0.00019512,2]
[388496125,1759217079155,500.0,0.00019512,2]
[388496126,1759217079190,500.0,0.00019512,2]
[388496127,1759217079223,500.0,0.00019512,2]
[388496128,1759217079257,500.0,0.00019512,2]
[388496129,1759217079292,500.0,0.00019512,2]
[388496130,1759217079325,500.0,0.00019512,2]
[388496131,1759217079358,500.0,0.00019512,2]
[388496132,1759217079389,500.0,0.00019512,2]
[388496133,1759217079423,500.0,0.00019512,2]
[388496134,1759217079454,500.0,0.00019512,2]
[388496135,1759217079486,500.0,0.00019512,2]
[388496136,1759217079516,570.94952494,0.00019512,2]
[388496137,1759217079547,500.0,0.00019512,2]
[388496138,1759217079577,420.16173633,0.00019512,2]
[388496139,1759217079602,79.83826367,0.00019512,2]
[388496140,1759217079634,500.0,0.00019512,2]
[388496141,1759217079669,500.0,0.00019512,2]
[388496142,1759217079704,500.0,0.00019512,2]
[388496143,1759217079735,500.0,0.00019512,2]
[388496144,1759217079764,500.0,0.00019512,2]
[388496145,1759217079943,500.0,0.00019512,2]
[388496146,1759217079990,500.0,0.00019512,2]
[388496147,1759217080022,500.0,0.00019512,2]
[388496148,1759217080056,500.0,0.00019512,2]
[388496149,1759217080089,236.8,0.00019512,2]
[388496150,1759217080121,500.0,0.00019512,2]
[388496151,1759217080152,500.0,0.00019512,2]
[388496152,1759217080181,381.52648294,0.00019512,2]
[388496153,1759217080216,500.0,0.00019512,2]
[388496154,1759217080252,500.0,0.00019512,2]
[388496155,1759217080286,500.0,0.00019512,2]
[388496156,1759217080318,500.0,0.00019512,2]
[388496157,1759217080350,500.0,0.00019512,2]
[388496158,1759217080381,292.88647141,0.00019512,2]
[388496159,1759217080412,500.0,0.00019512,2]
[388496160,1759217080444,500.0,0.00019512,2]
[388496161,1759217080474,8.95878198,0.00019512,2]
[388496162,1759217080500,491.04121802,0.00019512,2]
[388496163,1759217080528,478.31758268,0.00019512,2]
[388496164,1759217080557,500.0,0.00019512,2]
[388496165,1759217080586,500.0,0.00019512,2]
[388496166,1759217080618,500.0,0.00019512,2]
[388496167,1759217080651,500.0,0.00019512,2]
[388496168,1759217080682,500.0,0.00019512,2]
[388496169,1759217080713,500.0,0.00019512,2]
[388496170,1759217080744,231.79062584,0.00019512,2]
[388496171,1759217080779,500.0,0.00019512,2]
[388496172,1759217080810,500.0,0.00019512,2]
[388496173,1759217080842,500.0,0.00019512,2]
[388496174,1759217080877,500.0,0.00019512,2]
[388496175,1759217080912,500.0,0.00019512,2]
[388496176,1759217080944,500.0,0.00019512,2]
[388496177,1759217080976,500.0,0.00019512,2]
[388496178,1759217081007,500.0,0.00019512,2]
[388496179,1759217081038,500.0,0.00019512,2]
[388496180,1759217081072,500.0,0.00019512,2]
[388496181,1759217081104,500.0,0.00019512,2]
[388496182,1759217081136,298.86057346,0.00019512,2]
[388496183,1759217081162,201.13942654,0.00019512,2]
[388496184,1759217081194,500.0,0.00019512,2]
[388496185,1759217081229,500.0,0.00019512,2]
[388496186,1759217081263,500.0,0.00019512,2]
[388496187,1759217081295,500.0,0.00019512,2]
[388496188,1759217081326,500.0,0.00019512,2]
[388496189,1759217081361,500.0,0.00019512,2]
[388496190,1759217081394,500.0,0.00019512,2]
[388496191,1759217081424,500.0,0.00019512,2]
[388496192,1759217081463,500.0,0.00019512,2]
[388496193,1759217081494,500.0,0.00019512,2]
[388496194,1759217081532,500.0,0.00019512,2]
[388496195,1759217081574,500.0,0.00019512,2]
[388496196,1759217081607,500.0,0.00019512,2]
[388496197,1759217081642,500.0,0.00019512,2]
[388496198,1759217081674,500.0,0.00019512,2]
[388496199,1759217081709,448.07999834,0.00019512,2]
[388496200,1759217081741,500.0,0.00019512,2]
[388496201,1759217081776,500.0,0.00019512,2]
[388496202,1759217081822,500.0,0.00019512,2]
[388496203,1759217081856,350.79057512,0.00019512,2]
[388496204,1759217081882,149.20942488,0.00019512,2]
[388496205,1759217081923,500.0,0.00019512,2]
[388496206,1759217081957,500.0,0.00019512,2]
[388496207,1759217081994,500.0,0.00019512,2]
[388496208,1759217082032,500.0,0.00019512,2]
[388496209,1759217102230,300.0,0.00019511,2]
[388496210,1759217103226,1200.0,0.00019511,2]